[Event "*** SCC Grand Prix: Titled Tuesday Blitz"]
[Site "Chess.com"]
[Date "2020.06.02"]
[Round "10"]
[White "Grandmaster2B"]
[Black "Shivagami"]
[Result "1-0"]
[WhiteElo "2429"]
[BlackElo "2268"]
[TimeControl "180+1"]
[EndTime "11:56:27 PDT"]
[Termination "Grandmaster2B won by resignation"]

1. e4 {[%clk 0:03:00.9]} 1... c5 {[%clk 0:02:54.4]} 2. Nf3 {[%clk 0:02:59.4]}
2... d6 {[%clk 0:02:53.6]} 3. d4 {[%clk 0:03:00]} 3... cxd4 {[%clk 0:02:53.7]}
4. Nxd4 {[%clk 0:03:00.9]} 4... Nf6 {[%clk 0:02:52.9]} 5. Nc3 {[%clk 0:02:59.8]}
5... a6 {[%clk 0:02:51.9]} 6. f3 {[%clk 0:02:59.4]} 6... e5 {[%clk 0:02:50.7]}
7. Nb3 {[%clk 0:02:59.6]} 7... Be6 {[%clk 0:02:31.8]} 8. Be3 {[%clk 0:02:59.3]}
8... Be7 {[%clk 0:02:28.4]} 9. Qd2 {[%clk 0:02:59.3]} 9... b5 {[%clk 0:02:28.3]}
10. O-O-O {[%clk 0:02:56.6]} 10... Nc6 {[%clk 0:02:23.1]} 11. g4 {[%clk
0:02:55.5]} 11... O-O {[%clk 0:02:19.9]} 12. h4 {[%clk 0:02:53.8]} 12... Rc8
{[%clk 0:01:56.6]} 13. h5 {[%clk 0:02:50.4]} 13... Nb4 {[%clk 0:01:51.2]} 14.
Kb1 {[%clk 0:02:45.4]} 14... d5 {[%clk 0:01:20.8]} 15. g5 {[%clk 0:02:45.2]}
15... d4 {[%clk 0:01:11.7]} 16. gxf6 {[%clk 0:02:43.9]} 16... Bxf6 {[%clk
0:01:11.2]} 17. Nxd4 {[%clk 0:02:24.4]} 17... exd4 {[%clk 0:01:03.9]} 18. Bxd4
{[%clk 0:02:25.3]} 18... Bxd4 {[%clk 0:00:30.3]} 19. Qxd4 {[%clk 0:02:24.1]}
19... Qa5 {[%clk 0:00:21.1]} 20. a3 {[%clk 0:02:14.3]} 20... Nc6 {[%clk
0:00:09.4]} 21. Qc5 {[%clk 0:02:05.7]} 21... Rfd8 {[%clk 0:00:06.4]} 22. Rxd8+
{[%clk 0:01:56.7]} 22... Qxd8 {[%clk 0:00:07.3]} 23. Nd5 {[%clk 0:01:48.6]}
23... Nd4 {[%clk 0:00:07.9]} 24. Qxd4 {[%clk 0:01:46.6]} 24... f5 {[%clk
0:00:03.6]} 25. Rg1 {[%clk 0:01:45.5]} 1-0

[Event "*** SCC Grand Prix: Titled Tuesday Blitz"]
[Site "Chess.com"]
[Date "2020.06.02"]
[Round "10"]
[White "TERMINATOR_PC"]
[Black "attack2mateU"]
[Result "0-1"]
[WhiteElo "2480"]
[BlackElo "2702"]
[TimeControl "180+1"]
[EndTime "11:56:29 PDT"]
[Termination "attack2mateU won by checkmate"]

1. e4 {[%clk 0:03:00.9]} 1... c5 {[%clk 0:02:59.3]} 2. Nc3 {[%clk 0:03:00.7]}
2... d6 {[%clk 0:02:58.1]} 3. g3 {[%clk 0:03:00.9]} 3... Nc6 {[%clk 0:02:55.8]}
4. Bg2 {[%clk 0:03:01.3]} 4... g6 {[%clk 0:02:55.6]} 5. d3 {[%clk 0:03:01.9]}
5... Bg7 {[%clk 0:02:55.7]} 6. Be3 {[%clk 0:03:02.6]} 6... Rb8 {[%clk
0:02:55.1]} 7. Qd2 {[%clk 0:03:02.6]} 7... b5 {[%clk 0:02:55.1]} 8. Nge2 {[%clk
0:03:02.3]} 8... b4 {[%clk 0:02:55.1]} 9. Nd1 {[%clk 0:03:03]} 9... e6 {[%clk
0:02:47.6]} 10. O-O {[%clk 0:03:01.6]} 10... a5 {[%clk 0:02:43.6]} 11. f4 {[%clk
0:02:56.8]} 11... Nge7 {[%clk 0:02:43.1]} 12. f5 {[%clk 0:02:57.4]} 12... exf5
{[%clk 0:02:40.2]} 13. Bh6 {[%clk 0:02:57.3]} 13... O-O {[%clk 0:02:31.2]} 14.
Bxg7 {[%clk 0:02:57.4]} 14... Kxg7 {[%clk 0:02:32.1]} 15. exf5 {[%clk 0:02:58]}
15... Bxf5 {[%clk 0:02:29.1]} 16. Rxf5 {[%clk 0:02:58]} 16... gxf5 {[%clk
0:02:26.7]} 17. Ne3 {[%clk 0:02:57.3]} 17... Nd4 {[%clk 0:01:54.2]} 18. Nf4
{[%clk 0:02:57.2]} 18... Ng6 {[%clk 0:01:52.4]} 19. Rf1 {[%clk 0:02:57]} 19...
Nxf4 {[%clk 0:01:49.6]} 20. Rxf4 {[%clk 0:02:57.9]} 20... Re8 {[%clk 0:01:20.1]}
21. c3 {[%clk 0:02:22.9]} 21... bxc3 {[%clk 0:01:21]} 22. bxc3 {[%clk
0:02:23.8]} 22... Qe7 {[%clk 0:01:20.3]} 23. Re4 {[%clk 0:01:19.4]} 23... fxe4
{[%clk 0:01:08.1]} 24. cxd4 {[%clk 0:01:19.9]} 24... Rb1+ {[%clk 0:01:01.6]} 25.
Bf1 {[%clk 0:01:13.4]} 25... Qf6 {[%clk 0:01:00.3]} 26. Kg2 {[%clk 0:00:50.5]}
26... cxd4 {[%clk 0:00:55.8]} 27. Ng4 {[%clk 0:00:48.2]} 27... Qxf1# {[%clk
0:00:55.3]} 0-1

[Event "*** SCC Grand Prix: Titled Tuesday Blitz"]
[Site "Chess.com"]
[Date "2020.06.02"]
[Round "10"]
[White "colegiodemadrid"]
[Black "deribas12345"]
[Result "0-1"]
[WhiteElo "2375"]
[BlackElo "2549"]
[TimeControl "180+1"]
[EndTime "11:56:34 PDT"]
[Termination "deribas12345 won by resignation"]

1. d4 {[%clk 0:03:00.9]} 1... Nf6 {[%clk 0:02:57.6]} 2. c4 {[%clk 0:02:59.6]}
2... c5 {[%clk 0:02:58.5]} 3. d5 {[%clk 0:02:55.9]} 3... b5 {[%clk 0:02:58.6]}
4. cxb5 {[%clk 0:02:55.6]} 4... a6 {[%clk 0:02:59]} 5. f3 {[%clk 0:02:54.8]}
5... d6 {[%clk 0:02:57.3]} 6. e4 {[%clk 0:02:53.6]} 6... g6 {[%clk 0:02:58]} 7.
Ne2 {[%clk 0:02:47.9]} 7... Bg7 {[%clk 0:02:58.9]} 8. Nec3 {[%clk 0:02:47.3]}
8... O-O {[%clk 0:02:59]} 9. Na3 {[%clk 0:02:45.7]} 9... e6 {[%clk 0:02:59.2]}
10. Bc4 {[%clk 0:02:44.8]} 10... exd5 {[%clk 0:02:59]} 11. Bxd5 {[%clk
0:02:44.7]} 11... Nxd5 {[%clk 0:02:58.4]} 12. Qxd5 {[%clk 0:02:45.3]} 12... Ra7
{[%clk 0:02:58.3]} 13. O-O {[%clk 0:02:10.6]} 13... Bd4+ {[%clk 0:02:55.4]} 14.
Kh1 {[%clk 0:02:10.6]} 14... Be6 {[%clk 0:02:50.8]} 15. Qg5 {[%clk 0:02:08.7]}
15... f6 {[%clk 0:02:43.5]} 16. Qg3 {[%clk 0:02:03.3]} 16... Qa5 {[%clk
0:02:40.3]} 17. Qxd6 {[%clk 0:01:55.8]} 17... Bf7 {[%clk 0:02:35.1]} 18. Nd5
{[%clk 0:01:32.5]} 18... Rd8 {[%clk 0:02:24.9]} 19. Nc4 {[%clk 0:01:11.1]} 19...
Rxd6 {[%clk 0:02:21.4]} 20. Nxa5 {[%clk 0:01:10]} 20... Bxd5 {[%clk 0:02:21.6]}
21. exd5 {[%clk 0:01:07.1]} 21... axb5 {[%clk 0:02:19.4]} 22. Bf4 {[%clk
0:01:06.4]} 22... Rxd5 {[%clk 0:02:16.2]} 23. Nb3 {[%clk 0:00:57.5]} 23... Nc6
{[%clk 0:02:15.8]} 24. Nxd4 {[%clk 0:00:35.4]} 24... cxd4 {[%clk 0:02:15.1]} 25.
a3 {[%clk 0:00:33.4]} 25... d3 {[%clk 0:02:14.8]} 26. Rac1 {[%clk 0:00:31.4]}
26... Nd4 {[%clk 0:02:13.1]} 27. Rfd1 {[%clk 0:00:26.9]} 27... Ne2 {[%clk
0:02:07.4]} 28. Rc8+ {[%clk 0:00:25]} 28... Kg7 {[%clk 0:02:07.5]} 29. Be3
{[%clk 0:00:20.3]} 29... Re7 {[%clk 0:02:07.2]} 30. Bf2 {[%clk 0:00:20]} 30...
Nf4 {[%clk 0:02:02.8]} 31. g3 {[%clk 0:00:18.5]} 31... Re2 {[%clk 0:02:02.2]}
32. Ba7 {[%clk 0:00:15.1]} 32... d2 {[%clk 0:01:57.5]} 33. Rc7+ {[%clk
0:00:09.5]} 33... Kh6 {[%clk 0:01:56.5]} 34. Be3 {[%clk 0:00:03.6]} 34... Rxe3
{[%clk 0:01:56]} 0-1

[Event "*** SCC Grand Prix: Titled Tuesday Blitz"]
[Site "Chess.com"]
[Date "2020.06.02"]
[Round "10"]
[White "Lenyas66"]
[Black "Spartakus1975"]
[Result "0-1"]
[WhiteElo "2538"]
[BlackElo "2696"]
[TimeControl "180+1"]
[EndTime "11:56:36 PDT"]
[Termination "Spartakus1975 won by resignation"]

1. e4 {[%clk 0:03:00.9]} 1... e6 {[%clk 0:02:57.4]} 2. d4 {[%clk 0:03:00.4]}
2... d5 {[%clk 0:02:57.4]} 3. Nd2 {[%clk 0:03:00.5]} 3... c5 {[%clk 0:02:56.5]}
4. Ngf3 {[%clk 0:02:59.7]} 4... Nc6 {[%clk 0:02:55.6]} 5. Bb5 {[%clk 0:02:58.8]}
5... a6 {[%clk 0:02:54.7]} 6. Bxc6+ {[%clk 0:02:58.2]} 6... bxc6 {[%clk
0:02:55.3]} 7. c4 {[%clk 0:02:55.5]} 7... Nf6 {[%clk 0:02:49.1]} 8. e5 {[%clk
0:02:42.7]} 8... Nd7 {[%clk 0:02:47.7]} 9. O-O {[%clk 0:02:18.4]} 9... cxd4
{[%clk 0:02:44.8]} 10. Re1 {[%clk 0:02:18.3]} 10... Bb7 {[%clk 0:02:31.7]} 11.
Nxd4 {[%clk 0:02:16.5]} 11... c5 {[%clk 0:02:30.7]} 12. N4f3 {[%clk 0:02:15.5]}
12... Be7 {[%clk 0:02:23.1]} 13. cxd5 {[%clk 0:02:15.1]} 13... exd5 {[%clk
0:02:23]} 14. Qa4 {[%clk 0:02:06.6]} 14... O-O {[%clk 0:02:18.2]} 15. Qg4 {[%clk
0:02:05.9]} 15... Re8 {[%clk 0:02:00.4]} 16. Nf1 {[%clk 0:01:59.4]} 16... Nf8
{[%clk 0:02:00]} 17. Ng3 {[%clk 0:01:55.4]} 17... Ng6 {[%clk 0:01:59.8]} 18. Nf5
{[%clk 0:01:50.6]} 18... Bf8 {[%clk 0:01:59]} 19. h4 {[%clk 0:01:40.5]} 19...
Bc8 {[%clk 0:01:46.4]} 20. h5 {[%clk 0:01:37.7]} 20... Qd7 {[%clk 0:01:46.4]}
21. hxg6 {[%clk 0:01:16.4]} 21... Qxf5 {[%clk 0:01:45.8]} 22. gxf7+ {[%clk
0:01:12.8]} 22... Qxf7 {[%clk 0:01:44.9]} 23. Qg3 {[%clk 0:01:09]} 23... Bf5
{[%clk 0:01:42.1]} 24. Bf4 {[%clk 0:01:04.4]} 24... h6 {[%clk 0:01:41.1]} 25.
Bxh6 {[%clk 0:01:03.3]} 25... Rab8 {[%clk 0:01:35.7]} 26. b3 {[%clk 0:01:01.9]}
26... Rb4 {[%clk 0:01:35.5]} 27. Bf4 {[%clk 0:01:00]} 27... Be6 {[%clk
0:01:25.4]} 28. Bd2 {[%clk 0:00:53.8]} 28... Rg4 {[%clk 0:01:24.4]} 29. Qh2
{[%clk 0:00:53.8]} 29... Qxf3 {[%clk 0:01:23.6]} 30. g3 {[%clk 0:00:40.8]} 30...
d4 {[%clk 0:01:20.9]} 31. Qh5 {[%clk 0:00:37]} 31... Rxg3+ {[%clk 0:01:16.2]}
0-1

[Event "*** SCC Grand Prix: Titled Tuesday Blitz"]
[Site "Chess.com"]
[Date "2020.06.02"]
[Round "10"]
[White "Funkmaus"]
[Black "kudesnik84"]
[Result "0-1"]
[WhiteElo "2202"]
[BlackElo "2354"]
[TimeControl "180+1"]
[EndTime "11:56:36 PDT"]
[Termination "kudesnik84 won by resignation"]

1. d4 {[%clk 0:03:00.9]} 1... g6 {[%clk 0:02:55.9]} 2. Nf3 {[%clk 0:03:01.1]}
2... Bg7 {[%clk 0:02:55.9]} 3. g3 {[%clk 0:03:01.6]} 3... d6 {[%clk 0:02:54.9]}
4. Bg2 {[%clk 0:03:01.3]} 4... Nf6 {[%clk 0:02:55.4]} 5. O-O {[%clk 0:03:01.8]}
5... O-O {[%clk 0:02:56]} 6. c3 {[%clk 0:03:01.6]} 6... Nbd7 {[%clk 0:02:46.3]}
7. Nbd2 {[%clk 0:02:51]} 7... e5 {[%clk 0:02:38.8]} 8. dxe5 {[%clk 0:02:51.9]}
8... dxe5 {[%clk 0:02:38.1]} 9. Nc4 {[%clk 0:02:51.5]} 9... e4 {[%clk
0:02:27.1]} 10. Nd4 {[%clk 0:02:46.3]} 10... Re8 {[%clk 0:02:20.2]} 11. b3
{[%clk 0:02:36.6]} 11... Nb6 {[%clk 0:02:08.1]} 12. Ne3 {[%clk 0:02:28.6]} 12...
c6 {[%clk 0:01:59.4]} 13. Bb2 {[%clk 0:02:26.5]} 13... h5 {[%clk 0:01:57.9]} 14.
c4 {[%clk 0:02:18.8]} 14... h4 {[%clk 0:01:55.1]} 15. c5 {[%clk 0:02:17.9]}
15... Nbd5 {[%clk 0:01:54.1]} 16. Nc4 {[%clk 0:02:16.9]} 16... hxg3 {[%clk
0:01:45.4]} 17. hxg3 {[%clk 0:02:17.8]} 17... Ng4 {[%clk 0:01:40.3]} 18. e3
{[%clk 0:02:13.2]} 18... Qg5 {[%clk 0:01:36.5]} 19. Nd6 {[%clk 0:01:42.2]} 19...
Qh5 {[%clk 0:01:28.4]} 20. Re1 {[%clk 0:01:42.4]} 20... Qh2+ {[%clk 0:01:28.1]}
21. Kf1 {[%clk 0:01:42.8]} 21... Ngxe3+ {[%clk 0:01:24.9]} 22. fxe3 {[%clk
0:01:36.4]} 22... Bh3 {[%clk 0:01:24.4]} 23. Bxh3 {[%clk 0:01:20.6]} 23... Qxh3+
{[%clk 0:01:23.8]} 24. Kf2 {[%clk 0:01:09]} 24... Qh2+ {[%clk 0:01:23.4]} 25.
Kf1 {[%clk 0:01:07.4]} 25... Qxb2 {[%clk 0:01:04.4]} 26. Nxe8 {[%clk 0:01:03.1]}
26... Rxe8 {[%clk 0:01:01.9]} 27. Qe2 {[%clk 0:01:02.4]} 27... Nxe3+ {[%clk
0:00:57.1]} 28. Qxe3 {[%clk 0:00:57.2]} 28... Bxd4 {[%clk 0:00:56.7]} 29. Qe2
{[%clk 0:00:53.6]} 29... Qxe2+ {[%clk 0:00:56.5]} 30. Rxe2 {[%clk 0:00:53.9]}
30... Bxa1 {[%clk 0:00:56.4]} 0-1

[Event "*** SCC Grand Prix: Titled Tuesday Blitz"]
[Site "Chess.com"]
[Date "2020.06.02"]
[Round "10"]
[White "124chess"]
[Black "zaur-mammadov"]
[Result "0-1"]
[WhiteElo "2728"]
[BlackElo "2614"]
[TimeControl "180+1"]
[EndTime "11:56:38 PDT"]
[Termination "zaur-mammadov won by resignation"]

1. d4 {[%clk 0:03:00.9]} 1... d5 {[%clk 0:02:59.7]} 2. Nf3 {[%clk 0:02:59.7]}
2... Nf6 {[%clk 0:02:59.1]} 3. c3 {[%clk 0:02:59.9]} 3... c5 {[%clk 0:02:58.1]}
4. dxc5 {[%clk 0:03:00.8]} 4... Nc6 {[%clk 0:02:56.1]} 5. b4 {[%clk 0:02:59.4]}
5... a5 {[%clk 0:02:56.1]} 6. b5 {[%clk 0:02:58.2]} 6... Na7 {[%clk 0:02:55.9]}
7. a4 {[%clk 0:02:43.7]} 7... Bg4 {[%clk 0:02:44.8]} 8. e3 {[%clk 0:02:42.3]}
8... e5 {[%clk 0:02:37]} 9. Ba3 {[%clk 0:02:40.6]} 9... e4 {[%clk 0:02:34.7]}
10. h3 {[%clk 0:02:40.6]} 10... Bh5 {[%clk 0:02:26.4]} 11. g4 {[%clk 0:02:40.7]}
11... Nxg4 {[%clk 0:02:26.7]} 12. hxg4 {[%clk 0:02:41.6]} 12... Bxg4 {[%clk
0:02:27.2]} 13. Nbd2 {[%clk 0:02:42]} 13... exf3 {[%clk 0:02:23.5]} 14. Nxf3
{[%clk 0:02:20.4]} 14... Qf6 {[%clk 0:02:20.5]} 15. Be2 {[%clk 0:02:14.7]} 15...
Bxc5 {[%clk 0:02:14.3]} 16. Bxc5 {[%clk 0:01:47.5]} 16... Qxc3+ {[%clk
0:02:12.4]} 17. Kf1 {[%clk 0:01:48.1]} 17... Qxc5 {[%clk 0:02:13.3]} 18. Rc1
{[%clk 0:01:41.6]} 18... Qa3 {[%clk 0:01:49.1]} 19. Rc7 {[%clk 0:01:35.2]} 19...
O-O {[%clk 0:01:33.7]} 20. Ne5 {[%clk 0:00:34.5]} 20... Bxe2+ {[%clk 0:01:29.8]}
21. Qxe2 {[%clk 0:00:32.3]} 21... Qa1+ {[%clk 0:01:29.7]} 22. Kg2 {[%clk
0:00:31.6]} 22... Qxe5 {[%clk 0:01:30.6]} 23. Rxb7 {[%clk 0:00:31.1]} 23... Nc8
{[%clk 0:01:28.6]} 24. Rh5 {[%clk 0:00:27.4]} 24... Qe4+ {[%clk 0:01:26.3]} 25.
Qf3 {[%clk 0:00:26.9]} 25... Nd6 {[%clk 0:01:13.1]} 26. Rxd5 {[%clk 0:00:25.2]}
26... Qxf3+ {[%clk 0:01:11.9]} 27. Kxf3 {[%clk 0:00:26.1]} 27... Nxb7 {[%clk
0:01:12.4]} 0-1

[Event "*** SCC Grand Prix: Titled Tuesday Blitz"]
[Site "Chess.com"]
[Date "2020.06.02"]
[Round "10"]
[White "Terao90"]
[Black "blitzking1729"]
[Result "0-1"]
[WhiteElo "2310"]
[BlackElo "2477"]
[TimeControl "180+1"]
[EndTime "11:56:40 PDT"]
[Termination "blitzking1729 won on time"]

1. e4 {[%clk 0:03:00.9]} 1... d6 {[%clk 0:02:58.1]} 2. Nc3 {[%clk 0:03:00.5]}
2... Nf6 {[%clk 0:02:58.1]} 3. d4 {[%clk 0:03:00.6]} 3... e5 {[%clk 0:02:57.9]}
4. Nf3 {[%clk 0:03:00.1]} 4... Nbd7 {[%clk 0:02:56.9]} 5. Bc4 {[%clk 0:02:59.8]}
5... Be7 {[%clk 0:02:56.7]} 6. O-O {[%clk 0:02:59.6]} 6... O-O {[%clk
0:02:56.3]} 7. Re1 {[%clk 0:02:59.7]} 7... c6 {[%clk 0:02:56.5]} 8. a4 {[%clk
0:02:59.3]} 8... Qc7 {[%clk 0:02:56.7]} 9. a5 {[%clk 0:02:58.8]} 9... Rb8 {[%clk
0:02:55.9]} 10. b3 {[%clk 0:02:57.5]} 10... b5 {[%clk 0:02:55.7]} 11. axb6
{[%clk 0:02:58.4]} 11... axb6 {[%clk 0:02:55.8]} 12. d5 {[%clk 0:02:55.8]} 12...
b5 {[%clk 0:02:46.4]} 13. dxc6 {[%clk 0:02:52.2]} 13... bxc4 {[%clk 0:02:46.1]}
14. cxd7 {[%clk 0:02:52.1]} 14... Bxd7 {[%clk 0:02:46.2]} 15. Bg5 {[%clk
0:02:46.9]} 15... cxb3 {[%clk 0:02:38.5]} 16. Bxf6 {[%clk 0:02:45]} 16... Bxf6
{[%clk 0:02:30.3]} 17. Nd5 {[%clk 0:02:34.8]} 17... Qxc2 {[%clk 0:02:26.5]} 18.
Nxf6+ {[%clk 0:02:22.2]} 18... gxf6 {[%clk 0:02:24.7]} 19. Qxd6 {[%clk
0:02:23.1]} 19... Be6 {[%clk 0:02:24.1]} 20. Qe7 {[%clk 0:02:03.4]} 20... Kg7
{[%clk 0:02:06.9]} 21. Rac1 {[%clk 0:01:39.7]} 21... Rfe8 {[%clk 0:01:50.8]} 22.
Qa7 {[%clk 0:00:38.1]} 22... Qa2 {[%clk 0:01:47.7]} 23. Qe3 {[%clk 0:00:22.5]}
23... Rec8 {[%clk 0:01:41.1]} 24. Ra1 {[%clk 0:00:08.6]} 24... Qc2 {[%clk
0:01:36.1]} 25. Nd2 {[%clk 0:00:02.3]} 25... Rc3 {[%clk 0:01:32.1]} 0-1

[Event "*** SCC Grand Prix: Titled Tuesday Blitz"]
[Site "Chess.com"]
[Date "2020.06.02"]
[Round "10"]
[White "BIG_Pirate"]
[Black "CMS13"]
[Result "1-0"]
[WhiteElo "2361"]
[BlackElo "2230"]
[TimeControl "180+1"]
[EndTime "11:56:48 PDT"]
[Termination "BIG_Pirate won by resignation"]

1. Nf3 {[%clk 0:03:00.9]} 1... d5 {[%clk 0:02:59.6]} 2. c4 {[%clk 0:03:00.8]}
2... e6 {[%clk 0:02:59.5]} 3. g3 {[%clk 0:03:00.7]} 3... Nf6 {[%clk 0:02:59.4]}
4. Bg2 {[%clk 0:03:00.9]} 4... Nc6 {[%clk 0:02:58.5]} 5. O-O {[%clk 0:02:54.7]}
5... dxc4 {[%clk 0:02:55.2]} 6. Na3 {[%clk 0:02:52]} 6... Be7 {[%clk 0:02:52.7]}
7. Nxc4 {[%clk 0:02:51.3]} 7... O-O {[%clk 0:02:52.6]} 8. a3 {[%clk 0:02:42.5]}
8... a6 {[%clk 0:02:38.9]} 9. b4 {[%clk 0:02:37.8]} 9... b5 {[%clk 0:02:38.2]}
10. Nfe5 {[%clk 0:02:35.1]} 10... Nxe5 {[%clk 0:02:34.2]} 11. Nxe5 {[%clk
0:02:35]} 11... Qd4 {[%clk 0:02:29.3]} 12. Nc6 {[%clk 0:02:02]} 12... Qxa1
{[%clk 0:02:22.8]} 13. Nxe7+ {[%clk 0:02:01.9]} 13... Kh8 {[%clk 0:02:23.1]} 14.
Bxa8 {[%clk 0:02:02.5]} 14... Bd7 {[%clk 0:02:19]} 15. Bg2 {[%clk 0:02:01.7]}
15... Qe5 {[%clk 0:02:04.6]} 16. Nc6 {[%clk 0:01:47.2]} 16... Qd6 {[%clk
0:02:02.4]} 17. Na5 {[%clk 0:01:47.2]} 17... Nd5 {[%clk 0:01:58]} 18. Bb2 {[%clk
0:01:42.1]} 18... e5 {[%clk 0:01:49.2]} 19. d3 {[%clk 0:01:40.1]} 19... Be6
{[%clk 0:01:48.1]} 20. Nb3 {[%clk 0:01:37.3]} 20... f6 {[%clk 0:01:44]} 21. Qc2
{[%clk 0:01:35.8]} 21... h5 {[%clk 0:01:38.2]} 22. Nc5 {[%clk 0:01:16.5]} 22...
Bg8 {[%clk 0:01:36.1]} 23. Ne4 {[%clk 0:01:15.8]} 23... Qd8 {[%clk 0:01:34.8]}
24. h4 {[%clk 0:01:13.6]} 24... f5 {[%clk 0:01:27.9]} 25. Ng5 {[%clk 0:01:13]}
25... f4 {[%clk 0:01:28.2]} 26. Bxe5 {[%clk 0:01:09.9]} 26... fxg3 {[%clk
0:01:25]} 27. Bxg3 {[%clk 0:01:10.8]} 27... Nf6 {[%clk 0:01:17.3]} 28. Qxc7
{[%clk 0:01:07.7]} 28... Qe8 {[%clk 0:01:11.9]} 29. Qe5 {[%clk 0:01:01.9]} 29...
Qg6 {[%clk 0:01:09.1]} 30. Be4 {[%clk 0:00:55.8]} 30... Qh6 {[%clk 0:01:03.7]}
31. Qf5 {[%clk 0:00:48.8]} 31... Nxe4 {[%clk 0:01:00]} 32. Qxf8 {[%clk
0:00:46.8]} 32... Nf6 {[%clk 0:00:55.4]} 33. Nf7+ {[%clk 0:00:46.3]} 1-0

[Event "*** SCC Grand Prix: Titled Tuesday Blitz"]
[Site "Chess.com"]
[Date "2020.06.02"]
[Round "10"]
[White "bugbug01052018"]
[Black "Manukyan_Artak"]
[Result "1-0"]
[WhiteElo "2231"]
[BlackElo "2334"]
[TimeControl "180+1"]
[EndTime "11:56:50 PDT"]
[Termination "bugbug01052018 won by resignation"]

1. e4 {[%clk 0:03:00.9]} 1... c6 {[%clk 0:02:57.8]} 2. Nf3 {[%clk 0:03:00.2]}
2... d5 {[%clk 0:02:56]} 3. Nc3 {[%clk 0:03:00.3]} 3... Bg4 {[%clk 0:02:51.1]}
4. h3 {[%clk 0:02:59.6]} 4... Bxf3 {[%clk 0:02:47.8]} 5. Qxf3 {[%clk 0:02:59.1]}
5... Nf6 {[%clk 0:02:47.6]} 6. exd5 {[%clk 0:02:57.1]} 6... cxd5 {[%clk
0:02:45.1]} 7. Bb5+ {[%clk 0:02:54.7]} 7... Nc6 {[%clk 0:02:44]} 8. O-O {[%clk
0:02:54.7]} 8... e6 {[%clk 0:02:41.3]} 9. Re1 {[%clk 0:02:53.6]} 9... Be7 {[%clk
0:02:40.9]} 10. d4 {[%clk 0:02:52.7]} 10... O-O {[%clk 0:02:40]} 11. Bxc6 {[%clk
0:02:50.1]} 11... bxc6 {[%clk 0:02:39.6]} 12. Bf4 {[%clk 0:02:49.8]} 12... a5
{[%clk 0:02:38.2]} 13. a3 {[%clk 0:02:36.3]} 13... Qb6 {[%clk 0:02:34.1]} 14.
Be5 {[%clk 0:02:24.6]} 14... Qxb2 {[%clk 0:02:20.4]} 15. Rab1 {[%clk 0:02:13.6]}
15... Qxc2 {[%clk 0:02:18.3]} 16. Rec1 {[%clk 0:02:13.3]} 16... Qf5 {[%clk
0:02:14.2]} 17. Qxf5 {[%clk 0:02:12.1]} 17... exf5 {[%clk 0:02:14.1]} 18. Na4
{[%clk 0:02:12.6]} 18... Bxa3 {[%clk 0:02:01.6]} 19. Rxc6 {[%clk 0:02:10.9]}
19... Bb4 {[%clk 0:02:01.8]} 20. Bxf6 {[%clk 0:02:05.4]} 20... gxf6 {[%clk
0:02:00]} 21. Rxf6 {[%clk 0:02:05.7]} 21... Rac8 {[%clk 0:01:55.6]} 22. Rxf5
{[%clk 0:02:02.6]} 22... Rfd8 {[%clk 0:01:55.7]} 23. Nb6 {[%clk 0:02:02.1]}
23... Rc2 {[%clk 0:01:52]} 24. Nxd5 {[%clk 0:02:00.3]} 24... Bd2 {[%clk
0:01:41.1]} 25. Nf6+ {[%clk 0:01:44.1]} 25... Kg7 {[%clk 0:01:39.1]} 26. Nh5+
{[%clk 0:01:44]} 26... Kg6 {[%clk 0:01:38.4]} 27. g4 {[%clk 0:01:40.2]} 27...
Rd6 {[%clk 0:01:33.1]} 28. Rb8 {[%clk 0:01:34.6]} 28... f6 {[%clk 0:01:23.5]}
29. Rg8+ {[%clk 0:01:19]} 29... Kf7 {[%clk 0:01:23]} 30. Rg7+ {[%clk 0:01:18.3]}
30... Ke6 {[%clk 0:01:23.3]} 31. Rxh7 {[%clk 0:01:18]} 31... Rxd4 {[%clk
0:01:05.3]} 32. Rxf6+ {[%clk 0:01:07.2]} 32... Kd5 {[%clk 0:01:05.5]} 33. Rd7+
{[%clk 0:01:06.9]} 33... Ke4 {[%clk 0:01:03]} 34. Ng3+ {[%clk 0:00:54.1]} 34...
Ke5 {[%clk 0:01:03]} 35. Rf5+ {[%clk 0:00:52.1]} 35... Ke6 {[%clk 0:01:00.4]}
36. Rxd4 {[%clk 0:00:52.2]} 1-0

[Event "*** SCC Grand Prix: Titled Tuesday Blitz"]
[Site "Chess.com"]
[Date "2020.06.02"]
[Round "10"]
[White "Boudicca64"]
[Black "damayito"]
[Result "1-0"]
[WhiteElo "1974"]
[BlackElo "1648"]
[TimeControl "180+1"]
[EndTime "11:56:51 PDT"]
[Termination "Boudicca64 won by resignation"]

1. e4 {[%clk 0:03:00.9]} 1... e6 {[%clk 0:02:53]} 2. d4 {[%clk 0:02:58.8]} 2...
d5 {[%clk 0:02:53.9]} 3. exd5 {[%clk 0:02:58.2]} 3... exd5 {[%clk 0:02:54]} 4.
Nf3 {[%clk 0:02:58.1]} 4... Nf6 {[%clk 0:02:54.6]} 5. c4 {[%clk 0:02:56.2]} 5...
Bd6 {[%clk 0:02:55.1]} 6. Bg5 {[%clk 0:02:53.9]} 6... Be6 {[%clk 0:02:48.7]} 7.
cxd5 {[%clk 0:02:45.9]} 7... Bxd5 {[%clk 0:02:46.9]} 8. Nc3 {[%clk 0:02:46.2]}
8... Bc6 {[%clk 0:02:34]} 9. d5 {[%clk 0:02:44.5]} 9... Bd7 {[%clk 0:02:33.5]}
10. Bd3 {[%clk 0:02:27.9]} 10... O-O {[%clk 0:02:32.9]} 11. O-O {[%clk
0:02:26.1]} 11... h6 {[%clk 0:02:29]} 12. Bh4 {[%clk 0:02:24.4]} 12... Bg4
{[%clk 0:02:27.1]} 13. h3 {[%clk 0:02:21.6]} 13... Bh5 {[%clk 0:02:26.2]} 14. g4
{[%clk 0:02:20.1]} 14... Bg6 {[%clk 0:02:25.3]} 15. Bxg6 {[%clk 0:02:18.4]}
15... fxg6 {[%clk 0:02:25.8]} 16. Nd4 {[%clk 0:02:17.4]} 16... g5 {[%clk
0:02:10.6]} 17. Ne6 {[%clk 0:02:12.6]} 17... Qc8 {[%clk 0:01:36.7]} 18. Nxf8
{[%clk 0:02:08.8]} 18... Kxf8 {[%clk 0:01:32.8]} 19. Bg3 {[%clk 0:02:06.4]}
19... Bxg3 {[%clk 0:01:26.5]} 20. fxg3 {[%clk 0:02:04.5]} 20... Na6 {[%clk
0:01:27]} 21. Ne4 {[%clk 0:01:55.3]} 21... Qd8 {[%clk 0:01:22.9]} 22. Qd4 {[%clk
0:01:50.9]} 22... Kg8 {[%clk 0:01:13.2]} 23. Nxf6+ {[%clk 0:01:47.9]} 23... gxf6
{[%clk 0:01:09.3]} 24. Rxf6 {[%clk 0:01:47.3]} 24... Qe7 {[%clk 0:00:59.4]} 25.
Rg6+ {[%clk 0:01:40.7]} 25... Kh7 {[%clk 0:00:58.3]} 26. Re6 {[%clk 0:01:32.8]}
26... Qc5 {[%clk 0:00:30.9]} 27. Qxc5 {[%clk 0:01:31.2]} 27... Nxc5 {[%clk
0:00:31.4]} 28. Re7+ {[%clk 0:01:30.9]} 28... Kg6 {[%clk 0:00:27.9]} 29. Rxc7
{[%clk 0:01:29.9]} 29... b6 {[%clk 0:00:28]} 30. Rd1 {[%clk 0:01:25.5]} 30...
Ne4 {[%clk 0:00:27.8]} 31. d6 {[%clk 0:01:22.2]} 31... a5 {[%clk 0:00:25.6]} 32.
d7 {[%clk 0:01:20.9]} 32... Rd8 {[%clk 0:00:25.3]} 33. Rc8 {[%clk 0:01:19.1]}
1-0